bitfinex/quotes_BTCUSD_20250522
["timestamp","ask_amount","ask_price","bid_price","bid_amount"]
[1747939146060,0.26477189,111830.0,111820.0,0.87475211]
[1747939146314,0.32630073,111830.0,111820.0,0.38695211]
[1747939146535,0.32630073,111830.0,111820.0,0.99875211]
[1747939147216,0.01788388,111830.0,111820.0,1.02558021]
[1747939147424,0.19672676,111830.0,111820.0,0.99875211]
[1747939147629,0.19672676,111830.0,111820.0,5.63053911]
[1747939148779,0.19672676,111830.0,111820.0,3.72465211]
[1747939149033,0.19672676,111830.0,111820.0,3.60615211]
[1747939154555,0.19672676,111830.0,111820.0,3.62031709]
[1747939155868,0.19672676,111830.0,111820.0,3.79917597]
[1747939156107,0.0178834,111830.0,111820.0,4.21896113]
[1747939156318,0.2146104,111830.0,111820.0,4.21896161]
[1747939156650,0.20566882,111830.0,111820.0,4.21896169]
[1747939156856,0.196727,111830.0,111820.0,4.21896177]
[1747939157304,0.18778502,111830.0,111820.0,3.37951709]
[1747939157559,0.18778502,111830.0,111820.0,2.54361709]
[1747939157745,0.25318502,111830.0,111820.0,2.02611709]
[1747939157946,0.22028502,111830.0,111820.0,2.02611709]
[1747939158084,0.18778502,111830.0,111820.0,2.02611709]
[1747939158932,0.18778502,111830.0,111820.0,2.26997597]
[1747939159621,0.18778502,111830.0,111820.0,1.91473888]
[1747939160406,0.17882689,111840.0,111830.0,0.17884288]
[1747939160621,0.17882689,111840.0,111830.0,4.81062988]
[1747939160842,0.17882689,111840.0,111830.0,5.49667202]
[1747939161037,0.17882689,111840.0,111830.0,5.48772988]
[1747939162190,0.17882689,111840.0,111830.0,5.49667202]
[1747939162594,0.17982689,111840.0,111830.0,5.49667202]
[1747939162778,0.17982689,111840.0,111830.0,5.64667202]
[1747939162978,0.0099407,111840.0,111830.0,5.655614]
[1747939163207,0.02782242,111840.0,111830.0,5.6734974]
[1747939163357,0.02982242,111840.0,111830.0,5.6734974]
[1747939163762,0.0477047,111840.0,111830.0,5.66455582]
[1747939163989,0.0477047,111840.0,111830.0,5.66459582]
[1747939164221,0.21759033,111840.0,111830.0,5.64667202]
[1747939164429,0.21759129,111840.0,111830.0,5.64667202]
[1747939164721,0.003,111840.0,111830.0,6.01349748]
[1747939165615,0.02088172,111840.0,111830.0,6.01349748]
[1747939165950,0.02088164,111840.0,111830.0,6.01349748]
[1747939166960,0.02088172,111840.0,111830.0,6.01349748]
[1747939167278,0.01194078,111840.0,111830.0,6.01349748]
[1747939167700,0.003,111840.0,111830.0,6.01349748]
[1747939167902,0.003,111840.0,111830.0,6.10304304]
[1747939169188,0.003,111840.0,111830.0,6.13146532]
[1747939169626,0.02682026,111850.0,111840.0,0.54565019]
[1747939169827,0.02682026,111850.0,111840.0,5.24313719]
[1747939170029,0.02682018,111850.0,111840.0,5.24313719]
[1747939170269,0.02682018,111850.0,111840.0,5.39313719]
[1747939171145,0.02682018,111850.0,111840.0,5.39313727]
[1747939171355,0.03776048,111850.0,111840.0,5.66109727]
[1747939171617,0.21657154,111850.0,111840.0,5.64321523]
[1747939171818,0.21657154,111850.0,111840.0,5.58645649]
[1747939172145,0.002,111850.0,111840.0,4.51957551]
[1747939172528,0.003,111850.0,111840.0,4.51957551]
[1747939173906,0.003,111850.0,111840.0,4.53411636]
[1747939174522,0.003,111850.0,111840.0,4.51957551]
[1747939175710,0.002,111850.0,111840.0,4.51957551]
[1747939175875,0.03575744,111860.0,111850.0,0.53669158]
[1747939176068,0.21455236,111860.0,111850.0,5.16847874]
[1747939176272,0.03575744,111860.0,111850.0,5.17741904]
[1747939176482,0.03575744,111860.0,111850.0,5.33635926]
[1747939176686,0.02681778,111860.0,111850.0,5.33635926]
[1747939176891,0.02881778,111860.0,111850.0,5.34529932]
[1747939177086,0.02981778,111860.0,111850.0,5.34529932]
[1747939177532,0.02981778,111860.0,111850.0,5.35587364]
[1747939177919,0.02981762,111860.0,111850.0,5.38857316]
[1747939178133,0.0387572,111860.0,111850.0,5.22963318]
[1747939178738,0.0387572,111860.0,111850.0,5.19693326]
[1747939178926,0.02981762,111860.0,111850.0,5.19693326]
[1747939179148,0.03875712,111860.0,111850.0,5.19693326]
[1747939179568,0.03875712,111860.0,111850.0,5.20587332]
[1747939179766,0.03875712,111860.0,111850.0,5.1790529]
[1747939179972,0.22649178,111860.0,111850.0,5.42909222]
[1747939180196,0.26397416,111860.0,111850.0,1.33527432]
[1747939180610,0.26397416,111860.0,111850.0,0.72387432]
[1747939180833,0.26397416,111860.0,111850.0,1.33527432]
[1747939181052,0.26397416,111860.0,111850.0,1.51408522]
[1747939181379,0.19967416,111860.0,111850.0,1.51408522]
[1747939181582,0.19967416,111860.0,111850.0,1.5230256]
[1747939181733,0.19967416,111860.0,111850.0,1.51408522]
[1747939181943,0.19967416,111860.0,111850.0,1.5035109]
[1747939183054,0.19967416,111860.0,111850.0,1.3247]
[1747939183847,0.19967416,111860.0,111850.0,1.53033172]
[1747939183848,0.02087828,111860.0,111850.0,1.53033172]
[1747939184044,0.21755244,111860.0,111850.0,1.52139158]
[1747939184281,0.21755244,111860.0,111850.0,1.68033172]
[1747939185567,0.21755244,111860.0,111850.0,1.69090604]
[1747939185903,0.20861342,111860.0,111850.0,1.68196598]
[1747939186726,0.20861342,111860.0,111850.0,1.6909062]
[1747939187138,0.25433466,111860.0,111850.0,1.48527432]
[1747939188185,0.25433466,111860.0,111850.0,1.33527432]
[1747939188643,0.25433466,111860.0,111850.0,1.48527432]
[1747939189059,0.25433466,111860.0,111850.0,0.72387432]
[1747939189270,0.25433466,111860.0,111850.0,1.33503432]
[1747939189687,0.25433466,111860.0,111850.0,1.48503432]
[1747939190083,0.25433466,111860.0,111850.0,1.33503432]
[1747939192983,0.25433466,111860.0,111850.0,1.38079432]
[1747939193802,0.25433466,111860.0,111850.0,1.11287432]
[1747939193943,0.25433466,111860.0,111850.0,1.38079432]
[1747939194764,0.25433466,111860.0,111850.0,0.76963432]
[1747939195024,0.25433466,111860.0,111850.0,1.38079432]
[1747939196740,0.25433466,111860.0,111850.0,0.39633432]
[1747939196867,0.34388022,111860.0,111850.0,1.00749432]
[1747939197267,0.34388022,111860.0,111850.0,5.63928132]
[1747939197268,0.25433466,111860.0,111850.0,5.63928132]
[1747939197464,0.003,111860.0,111850.0,5.66610198]
[1747939197671,0.20861318,111860.0,111850.0,5.90217314]
[1747939197866,0.19073458,111860.0,111850.0,5.8586989]
[1747939198090,0.19073458,111860.0,111850.0,5.8253989]
[1747939198715,0.18179492,111860.0,111850.0,5.628707]
[1747939199733,0.18179492,111860.0,111850.0,5.63928132]
[1747939201353,0.18179492,111860.0,111850.0,5.02812132]
[1747939201558,0.18179492,111860.0,111850.0,5.63928132]
[1747939202528,0.18179492,111860.0,111850.0,5.76490522]
[1747939202702,0.18179492,111860.0,111850.0,5.79720522]
[1747939202927,0.18179492,111860.0,111850.0,5.64849432]
[1747939203115,0.18179492,111860.0,111850.0,5.65743486]
[1747939203331,0.19073458,111860.0,111850.0,5.99518614]
[1747939203537,0.19967432,111860.0,111850.0,5.98624576]
[1747939203702,0.19967432,111860.0,111850.0,5.97730522]
[1747939203902,0.19967432,111860.0,111850.0,5.98086249]
[1747939204107,0.19967432,111860.0,111850.0,5.98980303]
[1747939204299,0.19967432,111860.0,111850.0,5.99874349]
[1747939204960,0.19967432,111860.0,111850.0,5.98980303]
[1747939205267,0.19073466,111860.0,111850.0,5.98980303]
[1747939205707,0.19073466,111860.0,111850.0,5.99874349]
[1747939206069,0.19073466,111860.0,111850.0,6.34768387]
[1747939206275,0.199674,111860.0,111850.0,6.35662409]
[1747939206477,0.199674,111860.0,111850.0,6.45510963]
[1747939206478,0.003,111860.0,111850.0,6.45510963]
[1747939206670,0.02042828,111860.0,111850.0,6.45510963]
[1747939206879,0.01148902,111860.0,111850.0,6.45510963]
[1747939207301,0.00255,111860.0,111850.0,6.45510963]
[1747939207702,0.0114891,111860.0,111850.0,6.45510963]
[1747939208043,0.00255,111860.0,111850.0,6.44097804]
[1747939208457,0.00255,111860.0,111850.0,6.45551889]
[1747939208664,0.01812191,111870.0,111860.0,0.60821318]
[1747939208865,0.01812183,111870.0,111860.0,5.32954574]
[1747939209092,0.02706037,111870.0,111860.0,5.32954574]
[1747939209439,0.00024523,111870.0,111860.0,5.52214433]
[1747939209850,0.00927425,111870.0,111860.0,5.49368205]
[1747939210058,0.00033587,111870.0,111860.0,5.49368205]
[1747939210457,0.00033587,111870.0,111860.0,5.52214433]
[1747939211073,0.00233587,111870.0,111860.0,5.52214433]
[1747939211414,0.01127409,111870.0,111860.0,5.50800802]
[1747939211614,0.02021247,111870.0,111860.0,5.50800802]
[1747939212320,0.01127409,111870.0,111860.0,5.50800802]
[1747939213436,0.01127409,111870.0,111860.0,5.47954574]
[1747939214522,0.02021239,111870.0,111860.0,5.47954574]
[1747939214733,0.02021239,111870.0,111860.0,5.49365333]
[1747939216298,0.01127409,111870.0,111860.0,5.49365333]
[1747939216704,0.02021247,111870.0,111860.0,5.49365333]
[1747939217466,0.02021247,111870.0,111860.0,6.10453333]
[1747939217837,0.02021247,111870.0,111860.0,5.49365333]
[1747939218046,0.02021247,111870.0,111860.0,6.10449333]
[1747939218453,0.02021247,111870.0,111860.0,5.83661333]
[1747939218647,0.01127409,111870.0,111860.0,6.10449333]
[1747939219623,0.02021239,111870.0,111860.0,6.10449333]
[1747939220061,0.2168688,111870.0,111860.0,5.45301431]
[1747939220241,0.03808979,111870.0,111860.0,6.03672524]
[1747939220537,0.04702841,111870.0,111860.0,6.03672532]
[1747939220939,0.04702841,111870.0,111860.0,6.0456645]
[1747939221149,0.00233587,111870.0,111860.0,6.0456645]
[1747939221353,0.01127425,111870.0,111860.0,6.1073645]
[1747939221562,0.02021279,111870.0,111860.0,6.1073645]
[1747939222878,0.02021279,111870.0,111860.0,6.12146954]
[1747939223539,0.01127425,111870.0,111860.0,6.12146954]
[1747939224152,0.02021279,111870.0,111860.0,6.12146954]
[1747939224380,0.02021279,111870.0,111860.0,6.12150954]
[1747939224613,0.02915141,111870.0,111860.0,6.12150954]
[1747939224945,0.02915141,111870.0,111860.0,6.05980954]
[1747939225080,0.02915141,111870.0,111860.0,5.44896954]
[1747939225280,0.02915141,111870.0,111860.0,6.05976954]
[1747939225480,0.22580798,111870.0,111860.0,5.13593204]
[1747939225688,0.26139244,111870.0,111860.0,3.53094504]
[1747939225898,0.26139244,111870.0,111860.0,1.45064504]
[1747939226527,0.26139244,111870.0,111860.0,1.44712277]
[1747939227295,0.26139244,111870.0,111860.0,1.10712277]
[1747939228215,0.26139244,111870.0,111860.0,1.09654]
[1747939228427,0.00233587,111870.0,111860.0,1.30215318]
[1747939228604,0.02915125,111870.0,111860.0,1.30215318]
[1747939228804,0.03809003,111870.0,111860.0,1.30215318]
[1747939229011,0.02915125,111870.0,111860.0,1.45215318]
[1747939229237,0.26146344,111870.0,111860.0,1.09658]
[1747939229477,0.26039228,111870.0,111860.0,0.92808]
[1747939229683,0.26039228,111870.0,111860.0,0.5905]
[1747939229831,0.26039228,111870.0,111860.0,0.61088]
[1747939230243,0.26039228,111870.0,111860.0,0.62146277]
[1747939231460,0.26039228,111870.0,111860.0,0.01062277]
[1747939231651,0.26039228,111870.0,111860.0,0.61088]
[1747939231856,0.26039228,111870.0,111860.0,4e-05]
[1747939231979,0.26039228,111870.0,111860.0,0.61088]
[1747939232210,0.34993784,111870.0,111860.0,0.61088]
[1747939233215,0.34993784,111870.0,111860.0,0.61092]
[1747939233428,0.34993784,111870.0,111860.0,0.34304]
[1747939233623,0.34993784,111870.0,111860.0,0.61092]
[1747939234241,0.34993784,111870.0,111860.0,4e-05]
[1747939234469,0.34993784,111870.0,111860.0,0.61092]
[1747939234895,0.34471585,111870.0,111860.0,0.61092]
[1747939236699,0.25517029,111870.0,111860.0,1.22732]
[1747939236900,3.40515987,111880.0,111870.0,0.51877893]
[1747939237130,3.39680679,111880.0,111870.0,0.34]
[1747939237299,3.45970679,111880.0,111870.0,0.34]
[1747939238266,3.42980679,111880.0,111870.0,0.35058277]
[1747939238707,3.46400679,111880.0,111870.0,0.35058277]
[1747939238904,3.46400679,111880.0,111870.0,0.01058277]
[1747939239150,3.46400679,111880.0,111870.0,0.35058277]
[1747939239947,3.46400679,111880.0,111870.0,0.34]
[1747939240557,3.46400679,111880.0,111870.0,0.60788]
[1747939242584,3.46400679,111880.0,111870.0,0.34]
[1747939242783,3.46400679,111880.0,111870.0,0.95088]
[1747939243421,3.46400679,111880.0,111870.0,0.61088]
[1747939243837,3.55355235,111880.0,111870.0,0.61088]
[1747939244033,3.55355235,111880.0,111870.0,0.343]
[1747939244228,3.63413572,111880.0,111860.0,0.01062277]
[1747939244431,0.34226327,111870.0,111860.0,0.01062277]
[1747939244636,0.34226327,111870.0,111860.0,0.62150277]
[1747939244637,0.32226327,111870.0,111860.0,0.62150277]
[1747939244842,0.33120205,111870.0,111860.0,0.62150277]
[1747939245245,0.24165649,111870.0,111860.0,0.62150277]
[1747939245860,0.24165649,111870.0,111860.0,0.61092]
[1747939246310,0.33120205,111870.0,111860.0,0.34304]
[1747939246525,0.33120205,111870.0,111860.0,0.61092]
[1747939246955,0.2537345,111860.0,111850.0,0.3861135]
[1747939247182,0.2537345,111860.0,111850.0,0.57227749]
[1747939247441,0.2537345,111860.0,111850.0,0.34289064]
[1747939248016,0.2537345,111860.0,111850.0,0.61077064]
[1747939248239,0.2537345,111860.0,111850.0,0.99653064]
[1747939248599,0.2537345,111860.0,111850.0,0.99853064]
[1747939248816,0.2537345,111860.0,111850.0,1.01218955]
[1747939249460,0.2537345,111860.0,111850.0,0.99853064]
[1747939250886,0.2537345,111860.0,111850.0,0.73065064]
[1747939251233,0.2537345,111860.0,111850.0,0.99857064]
[1747939254199,0.2537345,111860.0,111850.0,0.99861064]
[1747939256164,0.18775128,111850.0,111840.0,0.58789515]
[1747939256382,0.24855128,111850.0,111840.0,0.93073515]
[1747939257279,0.24855128,111850.0,111840.0,1.19865515]
[1747939257940,0.18775128,111850.0,111840.0,1.19865515]
[1747939258391,0.18775128,111850.0,111840.0,1.58645515]
[1747939258604,0.18775128,111850.0,111840.0,1.58845515]
[1747939258842,0.18775128,111850.0,111840.0,1.58645515]
[1747939259069,0.18775128,111850.0,111840.0,1.58445515]
[1747939259193,0.21925128,111850.0,111840.0,1.58445515]
[1747939259420,0.25015128,111850.0,111840.0,1.58445515]
[1747939260477,0.25015128,111850.0,111840.0,1.24445515]
[1747939262120,0.18775128,111850.0,111840.0,1.24445515]
[1747939263489,0.18775128,111850.0,111840.0,1.49445515]
[1747939264252,0.18775128,111850.0,111840.0,1.55745515]
[1747939264496,0.18775128,111850.0,111840.0,1.49445515]
[1747939264922,0.18775128,111850.0,111840.0,1.52745515]
[1747939265054,0.18775128,111850.0,111840.0,1.56035515]
[1747939266832,0.18775128,111850.0,111840.0,1.52745515]
[1747939267370,0.24875128,111850.0,111840.0,0.88369515]
[1747939267606,0.33829684,111850.0,111840.0,0.88369515]
[1747939267856,0.41045017,111850.0,111840.0,1.22657515]
[1747939268064,0.41145017,111850.0,111840.0,1.49449515]
[1747939268266,0.41245017,111850.0,111840.0,1.49449515]
[1747939268918,0.34029684,111850.0,111840.0,1.49449515]
[1747939270301,0.40417722,111850.0,111840.0,0.88369515]
[1747939270449,0.40417722,111850.0,111840.0,1.49453515]
[1747939270833,0.40417722,111850.0,111840.0,0.88369515]
[1747939270834,1.75045544,111850.0,111840.0,0.88369515]
[1747939271051,1.83560544,111850.0,111840.0,1.11820984]
[1747939271261,1.83560544,111850.0,111840.0,0.26564984]
[1747939271262,2.33532986,111850.0,111840.0,0.26564984]
[1747939271488,2.36199252,111850.0,111840.0,0.23894056]
[1747939271665,0.56128505,111820.0,111810.0,0.61092]
[1747939271862,1.01230925,111820.0,111810.0,0.61092]
[1747939272181,0.52783525,111800.0,111790.0,0.34296]
[1747939272527,0.93994789,111800.0,111790.0,4e-05]
[1747939272772,0.93994789,111800.0,111790.0,0.26804]
[1747939272976,0.93994789,111800.0,111790.0,0.26819219]
[1747939273356,0.91484523,111800.0,111790.0,0.26819219]
[1747939273565,1.00436674,111800.0,111790.0,0.26819219]
[1747939274015,1.00436674,111800.0,111790.0,0.00019219]
[1747939274215,0.63734081,111800.0,111790.0,0.61111219]
[1747939274431,0.63934081,111800.0,111790.0,0.61111219]
[1747939274648,0.27938081,111800.0,111790.0,0.61111219]
[1747939274870,0.28934081,111800.0,111790.0,0.61111219]
[1747939275082,0.28038081,111800.0,111790.0,0.61111219]
[1747939275496,0.28038081,111800.0,111790.0,0.64441219]
[1747939275696,0.28038081,111800.0,111790.0,0.67501219]
[1747939277087,0.28038081,111800.0,111790.0,0.68900232]
[1747939278153,0.19083525,111800.0,111790.0,0.68900232]
[1747939278533,0.19083525,111800.0,111790.0,0.87450232]
[1747939282030,0.19083525,111800.0,111790.0,0.26358232]
[1747939282232,0.19083525,111800.0,111790.0,0.87446232]
[1747939283957,0.19977955,111800.0,111790.0,0.87446232]
[1747939284189,0.19977955,111800.0,111790.0,1.06231453]
[1747939284395,0.19083525,111800.0,111790.0,1.05336919]
[1747939284601,0.19083525,111800.0,111790.0,0.87446232]
[1747939287133,0.19083525,111800.0,111790.0,0.68896232]
[1747939287625,0.19083525,111800.0,111790.0,0.69808411]
[1747939288124,0.19083525,111800.0,111790.0,0.08720411]
[1747939288347,0.19083525,111800.0,111790.0,0.69808411]
[1747939288696,0.28038081,111800.0,111790.0,0.08720411]
[1747939288897,0.28038081,111800.0,111790.0,0.69808411]
[1747939289924,0.28038081,111800.0,111790.0,0.68896232]
[1747939290769,0.28038081,111800.0,111790.0,0.42088232]
[1747939290939,0.28038081,111800.0,111790.0,0.62506232]
[1747939292202,0.28038081,111800.0,111790.0,0.01418232]
[1747939292434,0.28038081,111800.0,111790.0,0.62506232]
[1747939292600,0.28038081,111800.0,111790.0,0.62510232]
[1747939299059,0.28038081,111800.0,111790.0,1.01114232]
[1747939301952,0.28038081,111800.0,111790.0,1.07404232]
[1747939302403,0.28038081,111800.0,111790.0,1.01118232]
[1747939302617,0.32730238,111800.0,111790.0,0.40022232]
[1747939302824,0.93234608,111800.0,111790.0,0.40022232]
[1747939303036,0.957417,111800.0,111790.0,0.74306232]
[1747939303240,0.957417,111800.0,111790.0,1.01118232]
[1747939303653,0.66995258,111800.0,111790.0,1.01118232]
[1747939303853,0.66995258,111800.0,111790.0,0.99719219]
[1747939304289,0.66795258,111800.0,111790.0,0.99719219]
[1747939304467,0.68615775,111800.0,111790.0,0.99719219]
[1747939304669,0.68915775,111800.0,111790.0,0.99719219]
[1747939304898,0.68815775,111800.0,111790.0,0.99719219]
[1747939305277,0.69015775,111800.0,111790.0,0.99719219]
[1747939305481,0.67195258,111800.0,111790.0,0.99719219]
[1747939306089,0.66195258,111800.0,111790.0,0.99719219]
[1747939306280,0.67195258,111800.0,111790.0,0.99719219]
[1747939306684,1.35795258,111800.0,111790.0,0.99719219]
[1747939306927,1.36711071,111800.0,111790.0,0.99719219]
[1747939308726,1.45663222,111800.0,111790.0,0.99719219]
[1747939309230,1.36711071,111800.0,111790.0,0.99719219]
[1747939315792,1.36711071,111800.0,111790.0,0.99723219]
[1747939318895,1.36711071,111800.0,111790.0,0.72907219]
[1747939319124,1.64457513,111800.0,111790.0,0.72907219]
[1747939319281,1.64457513,111800.0,111790.0,0.61119219]
[1747939319506,1.73409664,111800.0,111790.0,0.61119219]
[1747939319721,1.35711071,111800.0,111790.0,0.00019219]
[1747939319882,1.35711071,111800.0,111790.0,0.61107219]
[1747939322604,1.37707071,111800.0,111790.0,0.61107219]
[1747939322803,1.34256986,111800.0,111790.0,0.67297219]
[1747939323006,1.30838081,111800.0,111790.0,0.67297219]
[1747939323222,1.31838081,111800.0,111790.0,0.67297219]
[1747939323464,1.30838081,111800.0,111790.0,0.67297219]
[1747939323892,1.31838081,111800.0,111790.0,0.67297219]
[1747939325253,1.30838081,111800.0,111790.0,0.67297219]
[1747939326127,1.31838081,111800.0,111790.0,0.67297219]
[1747939326662,1.30838081,111800.0,111790.0,0.67297219]
[1747939326883,1.31838081,111800.0,111790.0,0.67297219]
[1747939327693,1.40462611,111800.0,111790.0,0.67297219]
[1747939327911,1.41458611,111800.0,111790.0,0.00019219]
[1747939328095,1.40458611,111800.0,111790.0,0.61107219]
[1747939328293,1.4396684,111800.0,111790.0,0.61107219]
[1747939328886,1.45420925,111800.0,111790.0,0.61107219]
[1747939330550,1.36796395,111800.0,111790.0,0.34291219]
[1747939330728,1.36796395,111800.0,111790.0,0.61107219]
[1747939331749,1.36796395,111800.0,111790.0,0.34291219]
[1747939331965,1.64546837,111800.0,111790.0,0.34291219]
[1747939332205,1.63546837,111800.0,111790.0,0.61107219]
[1747939332421,1.72498988,111800.0,111790.0,0.00019219]
[1747939332632,2.0124543,111800.0,111790.0,0.26835219]
[1747939332859,1.83316638,111800.0,111790.0,0.00019219]
[1747939333267,2.1206308,111800.0,111790.0,0.00019219]
[1747939333765,2.1156308,111800.0,111790.0,0.00019219]
[1747939333892,2.1206308,111800.0,111790.0,0.00019219]
[1747939334503,1.4346308,111800.0,111790.0,0.00019219]
[1747939334735,1.4386308,111800.0,111790.0,0.00019219]
[1747939334938,1.4886308,111800.0,111790.0,0.00019219]
[1747939335100,1.5422308,111800.0,111790.0,0.00019219]
[1747939335704,0.6364029,111790.0,111780.0,0.04367502]
[1747939335932,1.44137668,111790.0,111780.0,0.04367502]
[1747939336303,1.49497668,111790.0,111780.0,0.0316727]
[1747939336960,1.52307934,111790.0,111780.0,0.0316727]
[1747939337172,0.55137306,111770.0,111760.0,0.76816]
[1747939337389,1.31396078,111770.0,111760.0,0.5]
[1747939337621,1.58212078,111770.0,111760.0,0.5]
[1747939337992,1.29465636,111770.0,111760.0,0.5]
[1747939339129,1.03049636,111770.0,111760.0,0.5]
[1747939339339,1.22566533,111770.0,111760.0,0.5]
[1747939339538,0.96814559,111770.0,111760.0,0.5]
[1747939339785,0.9460633,111770.0,111760.0,0.5]
[1747939341780,0.93538304,111770.0,111760.0,0.76824]
[1747939343419,0.93538304,111770.0,111760.0,0.50004]
[1747939343772,1.02490455,111770.0,111760.0,0.50004]
[1747939345664,1.03854515,111770.0,111760.0,0.50004]
[1747939345880,1.06352251,111770.0,111760.0,0.50004]
[1747939346742,1.03854515,111770.0,111760.0,0.50004]
[1747939347439,1.06351578,111770.0,111760.0,0.50004]
[1747939348110,1.03854515,111770.0,111760.0,0.30785658]
[1747939351023,1.03854515,111770.0,111760.0,0.37145658]
[1747939351471,0.33155922,111770.0,111760.0,0.37145658]
[1747939351700,0.67155922,111770.0,111760.0,0.37145658]
[1747939351897,0.95902364,111770.0,111760.0,0.37145658]
[1747939353279,0.29337777,111770.0,111760.0,0.98237658]
[1747939354600,0.28637777,111770.0,111760.0,0.98237658]
[1747939354803,0.28937777,111770.0,111760.0,0.98237658]
[1747939355215,0.29237777,111770.0,111760.0,0.98237658]
[1747939355936,0.29337777,111770.0,111760.0,0.98237658]
[1747939356751,0.30804045,111770.0,111760.0,0.98237658]
[1747939356955,0.29337777,111770.0,111760.0,0.98237658]
[1747939357209,0.29337777,111770.0,111760.0,0.71409658]
[1747939357352,0.29337777,111770.0,111760.0,0.98233658]
[1747939359204,0.63337777,111770.0,111760.0,0.98233658]
[1747939360206,0.63337777,111770.0,111760.0,0.37145658]
[1747939360441,0.63337777,111770.0,111760.0,0.98225658]
[1747939361328,0.63328627,111770.0,111760.0,0.98225658]
[1747939362699,0.29328627,111770.0,111760.0,0.98225658]
[1747939364099,0.29328627,111770.0,111760.0,0.98221658]
[1747939368629,0.13924071,111770.0,111760.0,5.61400358]
[1747939368831,0.12593403,111770.0,111760.0,5.61400358]
[1747939369292,0.12293403,111770.0,111760.0,5.61400358]
[1747939369521,0.08963403,111770.0,111760.0,5.62295116]
[1747939369740,0.04948749,111770.0,111760.0,5.95400358]
[1747939370373,0.04948749,111770.0,111760.0,1.49681658]
[1747939370588,0.04948749,111770.0,111760.0,0.98221658]
[1747939370796,0.04948749,111770.0,111760.0,2.19791658]
[1747939371004,0.04648749,111770.0,111760.0,2.19791658]
[1747939371703,0.04648749,111770.0,111760.0,2.19891658]
[1747939371835,0.04648749,111770.0,111760.0,2.19991658]
[1747939372895,0.04648749,111770.0,111760.0,2.34991658]
[1747939374928,0.04648749,111770.0,111760.0,2.19991658]
[1747939375119,0.04648749,111770.0,111760.0,1.11481658]
[1747939375292,0.04648749,111770.0,111760.0,1.10351658]
[1747939375508,0.04648749,111770.0,111760.0,1.08761658]
[1747939376063,0.04648749,111770.0,111760.0,0.98421658]
[1747939381619,0.13710421,111770.0,111760.0,0.71601658]
[1747939381934,0.04648749,111770.0,111760.0,1.37029658]
[1747939382109,0.04648749,111770.0,111760.0,6.00208358]
[1747939385171,0.04648749,111770.0,111760.0,6.01268453]
[1747939385888,0.04648749,111770.0,111760.0,6.02205366]
[1747939387183,0.04648749,111770.0,111760.0,6.01268453]
[1747939389466,0.04648749,111770.0,111760.0,6.16268453]
[1747939391554,0.04648749,111770.0,111760.0,6.16228453]
[1747939392565,0.04648749,111770.0,111760.0,6.17145433]
[1747939393984,0.04648749,111770.0,111760.0,5.75333433]
[1747939394259,0.04648749,111770.0,111760.0,0.36102733]
[1747939394505,0.24175754,111770.0,111760.0,1.04873753]
[1747939394736,0.61078638,111770.0,111760.0,1.04873753]
[1747939394970,0.61078638,111770.0,111760.0,1.31685753]
[1747939395427,0.61078638,111770.0,111760.0,1.31585753]
[1747939395650,0.61078638,111770.0,111760.0,1.30525658]
[1747939395904,0.61078638,111770.0,111760.0,0.69493658]
[1747939395905,0.64165667,111770.0,111760.0,0.69493658]
[1747939396134,0.92912109,111770.0,111760.0,1.30525658]
[1747939396362,0.95418917,111770.0,111760.0,1.30525658]
[1747939396585,0.92331888,111770.0,111760.0,1.30525658]
[1747939396805,0.63585446,111770.0,111760.0,1.30525658]
[1747939397024,0.56370113,111770.0,111760.0,1.30425658]
[1747939397436,0.53863305,111770.0,111760.0,1.30425658]
[1747939398774,0.85059832,111770.0,111760.0,1.03745658]
[1747939399004,0.89883542,111770.0,111760.0,0.96209658]
[1747939399703,0.5631339,111770.0,111760.0,0.96209658]
[1747939400146,0.85059832,111770.0,111760.0,0.96209658]
[1747939401259,0.5631339,111770.0,111760.0,0.96209658]
[1747939402603,0.5631339,111770.0,111760.0,0.69393658]
[1747939402779,0.5631339,111770.0,111760.0,1.30569658]
[1747939408557,0.50853305,111770.0,111760.0,1.30569658]
[1747939411282,0.47603305,111770.0,111760.0,1.30569658]
[1747939413582,0.13603305,111770.0,111760.0,1.37049658]
[1747939413780,0.13603305,111770.0,111760.0,1.33869658]
[1747939414186,0.13603305,111770.0,111760.0,1.02693658]
[1747939414441,0.13603305,111770.0,111760.0,1.37053658]
[1747939414648,0.47603305,111770.0,111760.0,1.37053658]
[1747939414919,0.47603305,111770.0,111760.0,1.33873658]
[1747939417445,0.47603305,111770.0,111760.0,1.36953658]
[1747939419046,0.13603305,111770.0,111760.0,1.36953658]
[1747939419881,0.13603305,111770.0,111760.0,6.41953658]
[1747939420098,0.13603305,111770.0,111760.0,2.87603658]
[1747939420305,0.13603305,111770.0,111760.0,1.66733658]
[1747939420512,0.13603305,111770.0,111760.0,1.65413658]
[1747939420720,0.13603305,111770.0,111760.0,1.26873658]
[1747939420924,0.13603305,111770.0,111760.0,1.53693658]
[1747939421555,0.13603305,111770.0,111760.0,1.32315684]
[1747939421702,0.13603305,111770.0,111760.0,1.32415684]
[1747939422262,0.13603305,111770.0,111760.0,1.15575684]
[1747939423412,0.13603305,111770.0,111760.0,1.15675684]
[1747939423638,0.13603305,111770.0,111760.0,1.15775684]
[1747939423922,0.13603305,111770.0,111760.0,1.15675684]
[1747939424156,0.13603305,111770.0,111760.0,1.15775684]
[1747939424551,0.13603305,111770.0,111760.0,5.59595684]
[1747939424773,0.13603305,111770.0,111760.0,6.20771684]
[1747939425407,0.13603305,111770.0,111760.0,5.15461684]
[1747939425626,0.13603305,111770.0,111760.0,2.07531684]
[1747939425841,0.13603305,111770.0,111760.0,1.5639818]
[1747939426297,0.13603305,111770.0,111760.0,0.72972]
[1747939426482,0.13603305,111770.0,111760.0,1.79702]
[1747939426628,0.13603305,111770.0,111760.0,1.41086]
[1747939427022,0.13603305,111770.0,111760.0,1.67902]
[1747939428171,0.13603305,111770.0,111760.0,2.06518]
[1747939429035,0.13603305,111770.0,111760.0,2.06798]
[1747939429239,0.13603305,111770.0,111760.0,1.19228]
[1747939429418,0.13603305,111770.0,111760.0,1.17338]
[1747939430538,0.13603305,111770.0,111760.0,1.27648]
[1747939430749,0.13603305,111770.0,111760.0,1.06188]
[1747939431013,0.13603305,111770.0,111760.0,0.90264]
[1747939431151,0.13603305,111770.0,111760.0,1.0606]
[1747939431356,0.13603305,111770.0,111760.0,1.2011]
[1747939431565,0.13603305,111770.0,111760.0,0.79244]
[1747939431769,0.13710421,111770.0,111760.0,0.9966]
[1747939431972,0.16930421,111770.0,111760.0,0.9966]
[1747939434324,0.20020421,111770.0,111760.0,0.72844]
[1747939434526,0.19913305,111770.0,111760.0,0.72844]
[1747939434728,0.19913305,111770.0,111760.0,0.9966]
[1747939436876,0.19913305,111770.0,111760.0,0.99664]
[1747939441306,0.28865456,111770.0,111760.0,0.3862]
[1747939441536,0.28865456,111770.0,111760.0,0.99664]
[1747939441742,0.19913305,111770.0,111760.0,0.99664]
[1747939443161,0.20013305,111770.0,111760.0,0.99664]
[1747939444137,0.20113305,111770.0,111760.0,0.99664]